[Event "Early-Titled-Tuesday-Blitz-March-19-2024"]
[Site "Chess.com"]
[Date "2024.03.19"]
[Round "8"]
[White "ChessQueen"]
[Black "DrCeltic"]
[Result "0-1"]
[WhiteElo "2744"]
[BlackElo "2596"]
[TimeControl "180+1"]
[EndTime "9:27:35 PDT"]
[Termination "DrCeltic won by resignation"]

1. Nf3 {[%clk 0:03:00.9]} 1... d5 {[%clk 0:02:58.9]} 2. g3 {[%clk 0:03:01.2]}
2... Nf6 {[%clk 0:02:59.3]} 3. Bg2 {[%clk 0:03:01.8]} 3... Bf5 {[%clk
0:02:59.4]} 4. O-O {[%clk 0:02:59.1]} 4... e6 {[%clk 0:02:59.7]} 5. c4 {[%clk
0:02:54.1]} 5... c6 {[%clk 0:03:00]} 6. b3 {[%clk 0:02:47.5]} 6... Nbd7 {[%clk
0:02:58.3]} 7. Bb2 {[%clk 0:02:47.9]} 7... h6 {[%clk 0:02:58.6]} 8. d3 {[%clk
0:02:46.5]} 8... Be7 {[%clk 0:02:58.9]} 9. Nbd2 {[%clk 0:02:44.7]} 9... O-O
{[%clk 0:02:59]} 10. Qe1 {[%clk 0:02:43.8]} 10... a5 {[%clk 0:02:58.2]} 11. e4
{[%clk 0:02:40.8]} 11... Bh7 {[%clk 0:02:58.3]} 12. cxd5 {[%clk 0:02:35.3]}
12... cxd5 {[%clk 0:02:58.5]} 13. Rc1 {[%clk 0:02:26.5]} 13... Nc5 {[%clk
0:02:49.1]} 14. Bxf6 {[%clk 0:02:03.2]} 14... Nxd3 {[%clk 0:02:26.3]} 15. Bxe7
{[%clk 0:02:03.2]} 15... Qxe7 {[%clk 0:02:27.1]} 16. Qe3 {[%clk 0:01:59.9]}
16... Nxc1 {[%clk 0:02:27.1]} 17. Rxc1 {[%clk 0:02:00.8]} 17... Qa3 {[%clk
0:02:23.1]} 18. Re1 {[%clk 0:01:54.1]} 18... Qxa2 {[%clk 0:02:20.3]} 19. exd5
{[%clk 0:01:52.9]} 19... exd5 {[%clk 0:02:21.2]} 20. Nd4 {[%clk 0:01:49.7]}
20... Rfd8 {[%clk 0:02:10]} 21. N2f3 {[%clk 0:01:31.9]} 21... Be4 {[%clk
0:02:02.5]} 22. Bh3 {[%clk 0:01:31]} 22... Re8 {[%clk 0:01:59.6]} 23. Nd2 {[%clk
0:01:27]} 23... Bg6 {[%clk 0:01:46.9]} 24. Qxe8+ {[%clk 0:01:24.3]} 24... Rxe8
{[%clk 0:01:47.8]} 25. Rxe8+ {[%clk 0:01:24.6]} 25... Kh7 {[%clk 0:01:48.7]} 26.
N2f3 {[%clk 0:01:07.1]} 26... Be4 {[%clk 0:01:48.5]} 27. Rxe4 {[%clk 0:00:38]}
27... dxe4 {[%clk 0:01:46.7]} 28. Bf5+ {[%clk 0:00:38.6]} 28... Kg8 {[%clk
0:01:44.8]} 29. Bxe4 {[%clk 0:00:39.5]} 29... b5 {[%clk 0:01:40.8]} 30. Bc6
{[%clk 0:00:36]} 30... a4 {[%clk 0:01:36]} 31. bxa4 {[%clk 0:00:35.4]} 31...
bxa4 {[%clk 0:01:35.7]} 32. Be8 {[%clk 0:00:24.9]} 32... a3 {[%clk 0:01:32.9]}
33. Nf5 {[%clk 0:00:16.7]} 33... Qb1+ {[%clk 0:01:31.3]} 34. Kg2 {[%clk
0:00:17]} 34... Qxf5 {[%clk 0:01:30.3]} 0-1

[Event "Early-Titled-Tuesday-Blitz-March-19-2024"]
[Site "Chess.com"]
[Date "2024.03.19"]
[Round "8"]
[White "gorgeous1083"]
[Black "Tol_Tol"]
[Result "0-1"]
[WhiteElo "2067"]
[BlackElo "2294"]
[TimeControl "180+1"]
[EndTime "9:28:08 PDT"]
[Termination "Tol_Tol won on time"]

1. d4 {[%clk 0:03:00.9]} 1... Nf6 {[%clk 0:02:59.7]} 2. c4 {[%clk 0:02:59.8]}
2... g6 {[%clk 0:02:59.5]} 3. Nc3 {[%clk 0:02:58.1]} 3... Bg7 {[%clk 0:02:59.9]}
4. e4 {[%clk 0:02:58.5]} 4... O-O {[%clk 0:03:00.4]} 5. Nf3 {[%clk 0:02:59]}
5... d6 {[%clk 0:03:01]} 6. Be2 {[%clk 0:02:59.5]} 6... c5 {[%clk 0:03:01.1]} 7.
Be3 {[%clk 0:02:53.2]} 7... Ng4 {[%clk 0:03:00.7]} 8. Qd2 {[%clk 0:02:44.8]}
8... Nxe3 {[%clk 0:03:00.2]} 9. Qxe3 {[%clk 0:02:45.7]} 9... cxd4 {[%clk
0:02:56.5]} 10. Nxd4 {[%clk 0:02:46.1]} 10... Nc6 {[%clk 0:02:56.2]} 11. Nxc6
{[%clk 0:02:41]} 11... bxc6 {[%clk 0:02:55.9]} 12. O-O {[%clk 0:02:40.8]} 12...
Rb8 {[%clk 0:02:54.6]} 13. Rab1 {[%clk 0:02:37.2]} 13... Qa5 {[%clk 0:02:53.9]}
14. Rfe1 {[%clk 0:02:13.8]} 14... f5 {[%clk 0:02:34]} 15. Bf3 {[%clk 0:02:07.2]}
15... f4 {[%clk 0:02:31.8]} 16. Qd3 {[%clk 0:02:01.2]} 16... Be6 {[%clk
0:02:22.8]} 17. Be2 {[%clk 0:01:26.2]} 17... Be5 {[%clk 0:02:04.2]} 18. a3
{[%clk 0:01:25.5]} 18... Rb3 {[%clk 0:01:54.3]} 19. Rec1 {[%clk 0:01:07.9]}
19... Rfb8 {[%clk 0:01:52.6]} 20. Bd1 {[%clk 0:01:03.2]} 20... Rxb2 {[%clk
0:01:45.9]} 21. Rxb2 {[%clk 0:00:14.6]} 21... Rxb2 {[%clk 0:01:46.8]} 22. Bf3
{[%clk 0:00:08.9]} 22... Qc5 {[%clk 0:01:46.1]} 23. Na4 {[%clk 0:00:07.7]} 23...
Qxf2+ {[%clk 0:01:45.9]} 24. Kh1 {[%clk 0:00:07]} 24... Rd2 {[%clk 0:01:13.6]}
25. Qb3 {[%clk 0:00:07]} 25... Bg4 {[%clk 0:01:09.6]} 26. Rg1 {[%clk 0:00:03.9]}
26... Bxf3 {[%clk 0:01:07.5]} 27. Qxf3 {[%clk 0:00:03.1]} 27... Qxf3 {[%clk
0:01:07.6]} 28. gxf3 {[%clk 0:00:03.4]} 28... Ra2 {[%clk 0:01:06.7]} 29. Rb1
{[%clk 0:00:02.7]} 29... Rxa3 {[%clk 0:01:06.6]} 30. Nb2 {[%clk 0:00:01.4]}
30... Rb3 {[%clk 0:01:05.9]} 0-1

[Event "Early-Titled-Tuesday-Blitz-March-19-2024"]
[Site "Chess.com"]
[Date "2024.03.19"]
[Round "8"]
[White "bescmelasti"]
[Black "Eliwood44"]
[Result "1-0"]
[WhiteElo "2668"]
[BlackElo "2528"]
[TimeControl "180+1"]
[EndTime "9:28:09 PDT"]
[Termination "bescmelasti won by resignation"]

1. e4 {[%clk 0:03:00.9]} 1... e5 {[%clk 0:02:57.1]} 2. Nf3 {[%clk 0:03:01]} 2...
Nc6 {[%clk 0:02:57.5]} 3. Bc4 {[%clk 0:02:55.3]} 3... Bc5 {[%clk 0:02:56.4]} 4.
d3 {[%clk 0:02:56.2]} 4... Nf6 {[%clk 0:02:56.3]} 5. O-O {[%clk 0:02:56.6]} 5...
d6 {[%clk 0:02:56.6]} 6. c3 {[%clk 0:02:56.7]} 6... a5 {[%clk 0:02:56]} 7. Re1
{[%clk 0:02:52.1]} 7... h6 {[%clk 0:02:55.8]} 8. Na3 {[%clk 0:02:45.2]} 8... O-O
{[%clk 0:02:54.4]} 9. Nc2 {[%clk 0:02:45.3]} 9... Be6 {[%clk 0:02:53.7]} 10.
Bxe6 {[%clk 0:02:44.2]} 10... fxe6 {[%clk 0:02:53.8]} 11. d4 {[%clk 0:02:37.8]}
11... Bb6 {[%clk 0:02:49.7]} 12. h3 {[%clk 0:02:36.3]} 12... Nh5 {[%clk
0:02:44.8]} 13. Be3 {[%clk 0:02:08.3]} 13... Nf4 {[%clk 0:02:38.3]} 14. dxe5
{[%clk 0:02:05.5]} 14... Bxe3 {[%clk 0:02:36.8]} 15. fxe3 {[%clk 0:02:02.3]}
15... Ng6 {[%clk 0:02:27]} 16. exd6 {[%clk 0:02:02.6]} 16... cxd6 {[%clk
0:02:26.9]} 17. Ncd4 {[%clk 0:02:01.5]} 17... Qf6 {[%clk 0:02:17.5]} 18. Qb3
{[%clk 0:01:55.3]} 18... Nxd4 {[%clk 0:02:04.1]} 19. cxd4 {[%clk 0:01:48.3]}
19... Kh7 {[%clk 0:01:51]} 20. Rf1 {[%clk 0:01:46.1]} 20... Nh4 {[%clk
0:01:39.3]} 21. Nxh4 {[%clk 0:01:39]} 21... Qxh4 {[%clk 0:01:40.2]} 22. Qxe6
{[%clk 0:01:31.1]} 22... Rae8 {[%clk 0:01:40.7]} 23. Qxd6 {[%clk 0:01:19]} 23...
Rxf1+ {[%clk 0:01:39]} 24. Rxf1 {[%clk 0:01:19.9]} 24... Qxe4 {[%clk 0:01:36.9]}
25. Rf3 {[%clk 0:01:19.1]} 25... Qb1+ {[%clk 0:01:23]} 26. Kh2 {[%clk 0:01:19]}
26... Qxb2 {[%clk 0:01:21.2]} 27. Qd7 {[%clk 0:01:19]} 27... Rg8 {[%clk
0:01:12.4]} 28. a4 {[%clk 0:01:18.5]} 28... Qb4 {[%clk 0:01:07]} 29. Rf7 {[%clk
0:01:13.3]} 29... Qa3 {[%clk 0:00:58.7]} 30. Re7 {[%clk 0:01:12.6]} 30... b6
{[%clk 0:00:57.5]} 31. d5 {[%clk 0:01:07.2]} 31... Qc3 {[%clk 0:00:52.3]} 32. d6
{[%clk 0:01:07.2]} 32... Rf8 {[%clk 0:00:52]} 33. Qe6 {[%clk 0:01:04]} 33... Rf6
{[%clk 0:00:44]} 34. Qe4+ {[%clk 0:01:03.3]} 34... Kg8 {[%clk 0:00:36.3]} 35. d7
{[%clk 0:00:52.7]} 35... Qc7+ {[%clk 0:00:32.5]} 36. Qe5 {[%clk 0:00:53]} 36...
Qxe5+ {[%clk 0:00:21.7]} 37. Rxe5 {[%clk 0:00:53.9]} 37... Rd6 {[%clk
0:00:22.4]} 38. Re8+ {[%clk 0:00:53.3]} 1-0

[Event "Early-Titled-Tuesday-Blitz-March-19-2024"]
[Site "Chess.com"]
[Date "2024.03.19"]
[Round "8"]
[White "ljuks68"]
[Black "profedechess93"]
[Result "0-1"]
[WhiteElo "2452"]
[BlackElo "2642"]
[TimeControl "180+1"]
[EndTime "9:28:10 PDT"]
[Termination "profedechess93 won by resignation"]

1. e4 {[%clk 0:03:00.9]} 1... e6 {[%clk 0:03:00.4]} 2. d4 {[%clk 0:03:00.8]}
2... d5 {[%clk 0:03:01.1]} 3. Nc3 {[%clk 0:03:01.1]} 3... Nf6 {[%clk 0:03:01]}
4. Bg5 {[%clk 0:03:00.6]} 4... Be7 {[%clk 0:03:00.7]} 5. e5 {[%clk 0:03:00.6]}
5... Nfd7 {[%clk 0:03:01.3]} 6. h4 {[%clk 0:03:00.7]} 6... Nc6 {[%clk
0:03:01.6]} 7. Qg4 {[%clk 0:02:39.4]} 7... f6 {[%clk 0:03:01.3]} 8. Bf4 {[%clk
0:01:52]} 8... fxe5 {[%clk 0:02:59.6]} 9. dxe5 {[%clk 0:01:47.4]} 9... Ndxe5
{[%clk 0:02:58.4]} 10. Qxg7 {[%clk 0:01:46.1]} 10... Bf6 {[%clk 0:02:57.8]} 11.
Qg3 {[%clk 0:01:45.9]} 11... Qe7 {[%clk 0:02:48.9]} 12. Bb5 {[%clk 0:01:35.8]}
12... Bd7 {[%clk 0:02:39.4]} 13. Bxc6 {[%clk 0:01:20.6]} 13... Nxc6 {[%clk
0:02:39.4]} 14. Bxc7 {[%clk 0:01:21.1]} 14... Nd4 {[%clk 0:02:22]} 15. O-O-O
{[%clk 0:01:05.7]} 15... Nf5 {[%clk 0:02:21.6]} 16. Qh2 {[%clk 0:01:05.8]} 16...
Rc8 {[%clk 0:01:45.8]} 17. Be5 {[%clk 0:01:03.6]} 17... O-O {[%clk 0:01:45.3]}
18. Nf3 {[%clk 0:00:38.4]} 18... b5 {[%clk 0:01:08]} 19. g4 {[%clk 0:00:19.5]}
19... Bxe5 {[%clk 0:01:03.2]} 20. Qxe5 {[%clk 0:00:15.7]} 20... Ng7 {[%clk
0:01:03.8]} 21. Nxd5 {[%clk 0:00:15.3]} 21... Qc5 {[%clk 0:01:03.2]} 22. Nf6+
{[%clk 0:00:14.8]} 22... Rxf6 {[%clk 0:01:02.3]} 23. Qxc5 {[%clk 0:00:13.3]}
23... Rxc5 {[%clk 0:01:03.2]} 24. Ng5 {[%clk 0:00:11.1]} 24... Bc6 {[%clk
0:00:46.9]} 25. Rhe1 {[%clk 0:00:07.9]} 25... Bd5 {[%clk 0:00:45.5]} 0-1

[Event "Early-Titled-Tuesday-Blitz-March-19-2024"]
[Site "Chess.com"]
[Date "2024.03.19"]
[Round "8"]
[White "Szachulec75"]
[Black "ImportedItalianMaple"]
[Result "0-1"]
[WhiteElo "2236"]
[BlackElo "2528"]
[TimeControl "180+1"]
[EndTime "9:28:10 PDT"]
[Termination "ImportedItalianMaple won by resignation"]

1. Nf3 {[%clk 0:02:36.1]} 1... g6 {[%clk 0:02:59.1]} 2. g3 {[%clk 0:02:35.2]}
2... Bg7 {[%clk 0:02:59.1]} 3. Bg2 {[%clk 0:02:36.1]} 3... e5 {[%clk 0:02:59.3]}
4. d3 {[%clk 0:02:37]} 4... d5 {[%clk 0:02:56.9]} 5. O-O {[%clk 0:02:37.9]} 5...
Ne7 {[%clk 0:02:56.4]} 6. Nbd2 {[%clk 0:02:37.9]} 6... O-O {[%clk 0:02:55.9]} 7.
e4 {[%clk 0:02:38.5]} 7... Nbc6 {[%clk 0:02:53.2]} 8. c3 {[%clk 0:02:37.7]} 8...
h6 {[%clk 0:02:52.2]} 9. h3 {[%clk 0:02:36.9]} 9... Be6 {[%clk 0:02:52.3]} 10.
Qa4 {[%clk 0:02:33.4]} 10... Qd7 {[%clk 0:02:51.4]} 11. Kh2 {[%clk 0:02:32.1]}
11... Rad8 {[%clk 0:02:50]} 12. Re1 {[%clk 0:02:29.8]} 12... Rfe8 {[%clk
0:02:48.9]} 13. Nf1 {[%clk 0:02:29.1]} 13... f5 {[%clk 0:02:36.8]} 14. Be3
{[%clk 0:02:24.8]} 14... g5 {[%clk 0:02:29]} 15. Bc5 {[%clk 0:02:23.8]} 15... f4
{[%clk 0:02:19.9]} 16. Bxe7 {[%clk 0:02:22.5]} 16... Rxe7 {[%clk 0:02:16.1]} 17.
Ng1 {[%clk 0:02:06.8]} 17... Rf8 {[%clk 0:02:00.4]} 18. f3 {[%clk 0:01:51.8]}
18... d4 {[%clk 0:01:52.1]} 19. c4 {[%clk 0:01:46.8]} 19... Ref7 {[%clk
0:01:43.3]} 20. g4 {[%clk 0:01:43]} 20... h5 {[%clk 0:01:41.7]} 21. Rec1 {[%clk
0:01:22.4]} 21... hxg4 {[%clk 0:01:38]} 22. hxg4 {[%clk 0:01:22]} 22... Bxg4
{[%clk 0:01:30.5]} 23. fxg4 {[%clk 0:01:21.1]} 23... Qxg4 {[%clk 0:01:31.4]} 24.
Qd1 {[%clk 0:00:34.2]} 24... Qh4+ {[%clk 0:01:30.7]} 25. Bh3 {[%clk 0:00:30.3]}
25... f3 {[%clk 0:01:18.8]} 26. Ng3 {[%clk 0:00:17.5]} 26... g4 {[%clk
0:01:18.1]} 27. Qf1 {[%clk 0:00:16.1]} 27... Bh6 {[%clk 0:01:13.3]} 28. Rc2
{[%clk 0:00:14.7]} 28... Bf4 {[%clk 0:01:12.8]} 29. Qf2 {[%clk 0:00:11.7]} 29...
Rh7 {[%clk 0:01:09]} 30. a3 {[%clk 0:00:10.8]} 30... Rf6 {[%clk 0:00:53.8]} 0-1

[Event "Early-Titled-Tuesday-Blitz-March-19-2024"]
[Site "Chess.com"]
[Date "2024.03.19"]
[Round "8"]
[White "BestestBP"]
[Black "Janh4"]
[Result "1-0"]
[WhiteElo "2231"]
[BlackElo "2152"]
[TimeControl "180+1"]
[EndTime "9:28:10 PDT"]
[Termination "BestestBP won by resignation"]

1. e4 {[%clk 0:02:59.3]} 1... c6 {[%clk 0:02:59.9]} 2. d4 {[%clk 0:02:56.4]}
2... d5 {[%clk 0:03:00.8]} 3. exd5 {[%clk 0:02:54.6]} 3... cxd5 {[%clk
0:03:00.9]} 4. Nf3 {[%clk 0:02:55.2]} 4... Nc6 {[%clk 0:03:00.9]} 5. c3 {[%clk
0:02:52.4]} 5... Qc7 {[%clk 0:03:01.1]} 6. Be2 {[%clk 0:02:50.4]} 6... Bg4
{[%clk 0:02:59.3]} 7. O-O {[%clk 0:02:50.6]} 7... e6 {[%clk 0:02:59.3]} 8. Nbd2
{[%clk 0:02:47.1]} 8... Bd6 {[%clk 0:02:58.8]} 9. h3 {[%clk 0:02:46.1]} 9... Bh5
{[%clk 0:02:58.6]} 10. Re1 {[%clk 0:02:37]} 10... Nf6 {[%clk 0:02:57.2]} 11. Ng5
{[%clk 0:02:28.6]} 11... Bxe2 {[%clk 0:02:55.5]} 12. Qxe2 {[%clk 0:02:29.5]}
12... O-O {[%clk 0:02:54.1]} 13. Nf1 {[%clk 0:02:14]} 13... Rfe8 {[%clk
0:02:43]} 14. Bd2 {[%clk 0:02:05.8]} 14... e5 {[%clk 0:02:39.3]} 15. dxe5 {[%clk
0:02:02.3]} 15... Bxe5 {[%clk 0:02:30.5]} 16. Qd3 {[%clk 0:01:59.6]} 16... h6
{[%clk 0:02:25.3]} 17. Nf3 {[%clk 0:01:56.5]} 17... Bd6 {[%clk 0:02:24]} 18. Ne3
{[%clk 0:01:48.2]} 18... Rad8 {[%clk 0:02:13.7]} 19. Nf5 {[%clk 0:01:42.1]}
19... Bf8 {[%clk 0:02:13.3]} 20. N3d4 {[%clk 0:01:14.9]} 20... Ne4 {[%clk
0:02:00]} 21. Nxc6 {[%clk 0:00:54.1]} 21... bxc6 {[%clk 0:01:51.1]} 22. Be3
{[%clk 0:00:47]} 22... Bc5 {[%clk 0:01:15.8]} 23. Bxc5 {[%clk 0:00:39.4]} 23...
Nxc5 {[%clk 0:01:14.8]} 24. Qd4 {[%clk 0:00:37.8]} 24... f6 {[%clk 0:00:57.8]}
25. Qxc5 {[%clk 0:00:28.4]} 25... Qf4 {[%clk 0:00:58]} 26. Ne7+ {[%clk
0:00:22.2]} 26... Kh7 {[%clk 0:00:52.8]} 27. Qd4 {[%clk 0:00:17.9]} 27... Qd6
{[%clk 0:00:43.6]} 28. Qd3+ {[%clk 0:00:17.4]} 1-0

[Event "Early-Titled-Tuesday-Blitz-March-19-2024"]
[Site "Chess.com"]
[Date "2024.03.19"]
[Round "8"]
[White "margarita_2703"]
[Black "MuhittinBuker"]
[Result "1-0"]
[WhiteElo "2330"]
[BlackElo "2119"]
[TimeControl "180+1"]
[EndTime "9:28:17 PDT"]
[Termination "margarita_2703 won by resignation"]

1. e4 {[%clk 0:03:00.9]} 1... e5 {[%clk 0:02:59.2]} 2. Nf3 {[%clk 0:03:00.6]}
2... Nc6 {[%clk 0:02:58.7]} 3. Bc4 {[%clk 0:02:55.9]} 3... Nf6 {[%clk
0:02:57.9]} 4. Ng5 {[%clk 0:02:53.6]} 4... d5 {[%clk 0:02:51.3]} 5. exd5 {[%clk
0:02:48.3]} 5... b5 {[%clk 0:02:48.1]} 6. dxc6 {[%clk 0:02:36.7]} 6... bxc4
{[%clk 0:02:47.2]} 7. Nc3 {[%clk 0:02:34.3]} 7... Bc5 {[%clk 0:02:32.6]} 8. Nge4
{[%clk 0:02:15.4]} 8... Nxe4 {[%clk 0:02:31.3]} 9. Nxe4 {[%clk 0:02:16.3]} 9...
Be7 {[%clk 0:02:31.6]} 10. O-O {[%clk 0:02:02.4]} 10... O-O {[%clk 0:02:30.8]}
11. b3 {[%clk 0:01:39.3]} 11... Qd4 {[%clk 0:02:13.9]} 12. Nc3 {[%clk
0:01:35.7]} 12... Bg4 {[%clk 0:01:59.5]} 13. Qe1 {[%clk 0:01:31.8]} 13... Bf5
{[%clk 0:01:59.5]} 14. Bb2 {[%clk 0:01:23.4]} 14... Bd6 {[%clk 0:01:35]} 15. Rc1
{[%clk 0:01:16.1]} 15... Rfe8 {[%clk 0:01:26.8]} 16. Qe3 {[%clk 0:01:13.7]}
16... Qh4 {[%clk 0:01:22.5]} 17. g3 {[%clk 0:01:13.3]} 17... Qh3 {[%clk
0:01:21.2]} 18. Rfe1 {[%clk 0:01:08.7]} 18... h5 {[%clk 0:01:11]} 19. Ne4 {[%clk
0:01:05.2]} 19... Bxe4 {[%clk 0:00:59.1]} 20. Qxe4 {[%clk 0:01:06.1]} 20... cxb3
{[%clk 0:00:45.2]} 21. cxb3 {[%clk 0:01:07]} 21... Rab8 {[%clk 0:00:43.4]} 22.
Qg2 {[%clk 0:01:05.8]} 22... Qf5 {[%clk 0:00:41.2]} 23. Re4 {[%clk 0:01:04.6]}
23... Rbd8 {[%clk 0:00:25.9]} 24. Rce1 {[%clk 0:01:03.2]} 24... f6 {[%clk
0:00:22.4]} 25. d4 {[%clk 0:01:02.3]} 25... Kf7 {[%clk 0:00:16.3]} 26. dxe5
{[%clk 0:01:02.5]} 26... Bxe5 {[%clk 0:00:15.7]} 27. Bxe5 {[%clk 0:01:02.2]}
27... Rxe5 {[%clk 0:00:14.5]} 28. Rxe5 {[%clk 0:01:02.4]} 28... fxe5 {[%clk
0:00:14.6]} 29. h4 {[%clk 0:01:02.4]} 29... g6 {[%clk 0:00:14.1]} 30. Qf1 {[%clk
0:01:01.1]} 30... Rd2 {[%clk 0:00:13.3]} 31. Qc4+ {[%clk 0:01:00.8]} 31... Kg7
{[%clk 0:00:13.6]} 32. Qc5 {[%clk 0:00:58]} 32... e4 {[%clk 0:00:11.9]} 33. Qc3+
{[%clk 0:00:54.5]} 33... Kh7 {[%clk 0:00:11.4]} 34. Qxd2 {[%clk 0:00:54.8]} 1-0

[Event "Early-Titled-Tuesday-Blitz-March-19-2024"]
[Site "Chess.com"]
[Date "2024.03.19"]
[Round "8"]
[White "Rurep26"]
[Black "Chessmissile07"]
[Result "0-1"]
[WhiteElo "2725"]
[BlackElo "2934"]
[TimeControl "180+1"]
[EndTime "9:28:18 PDT"]
[Termination "Chessmissile07 won by resignation"]

1. d4 {[%clk 0:03:00.9]} 1... a6 {[%clk 0:03:00.9]} 2. Bf4 {[%clk 0:03:00.2]}
2... d6 {[%clk 0:02:57.1]} 3. e3 {[%clk 0:03:00.5]} 3... g6 {[%clk 0:02:56.8]}
4. Nd2 {[%clk 0:03:00.9]} 4... Bg7 {[%clk 0:02:56.9]} 5. Ngf3 {[%clk 0:03:01.6]}
5... Nd7 {[%clk 0:02:56.7]} 6. h3 {[%clk 0:03:01]} 6... e5 {[%clk 0:02:56.8]} 7.
Bh2 {[%clk 0:03:01]} 7... Ne7 {[%clk 0:02:57]} 8. Bc4 {[%clk 0:03:00.9]} 8...
O-O {[%clk 0:02:56.9]} 9. dxe5 {[%clk 0:02:59.7]} 9... Nxe5 {[%clk 0:02:55.7]}
10. Nxe5 {[%clk 0:02:59.3]} 10... dxe5 {[%clk 0:02:56.6]} 11. c3 {[%clk
0:02:59.7]} 11... b5 {[%clk 0:02:39.8]} 12. Bb3 {[%clk 0:02:53.6]} 12... c5
{[%clk 0:02:39.9]} 13. Nf3 {[%clk 0:02:49.8]} 13... c4 {[%clk 0:02:36.4]} 14.
Qxd8 {[%clk 0:02:49.3]} 14... Rxd8 {[%clk 0:02:37.3]} 15. Bc2 {[%clk 0:02:50.2]}
15... f6 {[%clk 0:02:35.7]} 16. Be4 {[%clk 0:02:48.5]} 16... Rb8 {[%clk
0:02:33.1]} 17. Rd1 {[%clk 0:02:40.2]} 17... Bf5 {[%clk 0:02:15.8]} 18. Bxf5
{[%clk 0:02:35.2]} 18... Nxf5 {[%clk 0:02:16.7]} 19. Ke2 {[%clk 0:02:29.7]}
19... Kf7 {[%clk 0:02:11.9]} 20. g4 {[%clk 0:02:27.8]} 20... Ne7 {[%clk
0:02:07.8]} 21. g5 {[%clk 0:02:28.1]} 21... Ke6 {[%clk 0:02:06.7]} 22. gxf6
{[%clk 0:02:27.4]} 22... Bxf6 {[%clk 0:02:07.6]} 23. Nd2 {[%clk 0:02:20]} 23...
Nd5 {[%clk 0:01:58]} 24. Ne4 {[%clk 0:02:19.7]} 24... Be7 {[%clk 0:01:58.6]} 25.
a3 {[%clk 0:02:12.2]} 25... Nb6 {[%clk 0:01:54.2]} 26. Rxd8 {[%clk 0:01:22.3]}
26... Rxd8 {[%clk 0:01:55.1]} 27. Rd1 {[%clk 0:01:22.2]} 27... Na4 {[%clk
0:01:53.3]} 28. Rxd8 {[%clk 0:01:21.4]} 28... Bxd8 {[%clk 0:01:54.2]} 29. Kd2
{[%clk 0:01:21]} 29... Kd5 {[%clk 0:01:37.3]} 30. f3 {[%clk 0:01:01.7]} 30...
Nxb2 {[%clk 0:01:37.1]} 31. Nf2 {[%clk 0:01:01.3]} 31... h5 {[%clk 0:01:15.6]}
32. Kc2 {[%clk 0:00:57.1]} 32... Bh4 {[%clk 0:01:09.2]} 33. Ne4 {[%clk
0:00:30.4]} 33... Nd3 {[%clk 0:01:08.3]} 34. Nd2 {[%clk 0:00:30.5]} 34... Nf2
{[%clk 0:01:00]} 35. e4+ {[%clk 0:00:25.8]} 35... Ke6 {[%clk 0:00:59]} 36. a4
{[%clk 0:00:25.4]} 36... Nxh3 {[%clk 0:00:57.3]} 37. axb5 {[%clk 0:00:26.3]}
37... axb5 {[%clk 0:00:57.9]} 38. Nb1 {[%clk 0:00:27.2]} 38... Be7 {[%clk
0:00:56.5]} 0-1

[Event "Early-Titled-Tuesday-Blitz-March-19-2024"]
[Site "Chess.com"]
[Date "2024.03.19"]
[Round "8"]
[White "vi_pranav"]
[Black "Dyadya81"]
[Result "1-0"]
[WhiteElo "3062"]
[BlackElo "2950"]
[TimeControl "180+1"]
[EndTime "9:28:21 PDT"]
[Termination "vi_pranav won by resignation"]

1. d4 {[%clk 0:03:00.9]} 1... d5 {[%clk 0:03:00]} 2. Nc3 {[%clk 0:03:01.2]} 2...
Nf6 {[%clk 0:02:58]} 3. Bf4 {[%clk 0:03:00.7]} 3... a6 {[%clk 0:02:56.4]} 4. e3
{[%clk 0:02:59.5]} 4... Bf5 {[%clk 0:02:53.5]} 5. f3 {[%clk 0:02:59.6]} 5... e6
{[%clk 0:02:52.6]} 6. g4 {[%clk 0:02:59.5]} 6... Bg6 {[%clk 0:02:53.2]} 7. h4
{[%clk 0:03:00.2]} 7... h6 {[%clk 0:02:53.7]} 8. Bd3 {[%clk 0:02:54.1]} 8...
Bxd3 {[%clk 0:02:53.3]} 9. cxd3 {[%clk 0:02:55]} 9... c5 {[%clk 0:02:50.2]} 10.
dxc5 {[%clk 0:02:39]} 10... Bxc5 {[%clk 0:02:38.1]} 11. d4 {[%clk 0:02:38.8]}
11... Bd6 {[%clk 0:02:34.4]} 12. Nge2 {[%clk 0:02:39.3]} 12... Nc6 {[%clk
0:02:34.1]} 13. Kf2 {[%clk 0:02:36.6]} 13... Rc8 {[%clk 0:02:32.9]} 14. Rc1
{[%clk 0:02:33.4]} 14... Qe7 {[%clk 0:02:06.5]} 15. g5 {[%clk 0:02:28.4]} 15...
Nd7 {[%clk 0:02:03.3]} 16. Bxd6 {[%clk 0:02:01.7]} 16... Qxd6 {[%clk 0:02:03.3]}
17. Nf4 {[%clk 0:02:02]} 17... hxg5 {[%clk 0:01:37.1]} 18. hxg5 {[%clk
0:02:02.9]} 18... Ke7 {[%clk 0:01:37.1]} 19. Qb3 {[%clk 0:01:31.1]} 19... Rxh1
{[%clk 0:01:11.4]} 20. Rxh1 {[%clk 0:01:30.3]} 20... b5 {[%clk 0:01:09.3]} 21.
Rh7 {[%clk 0:01:24.5]} 21... Rg8 {[%clk 0:01:06.5]} 22. Nce2 {[%clk 0:01:20.9]}
22... Nf8 {[%clk 0:00:54.3]} 23. Rh1 {[%clk 0:01:20.1]} 23... Nd7 {[%clk
0:00:54.6]} 24. Qc2 {[%clk 0:01:16]} 24... Nb4 {[%clk 0:00:52]} 25. Qh7 {[%clk
0:01:15]} 25... Kf8 {[%clk 0:00:48.2]} 26. Rc1 {[%clk 0:01:03.9]} 26... Nc6
{[%clk 0:00:47.5]} 27. Qc2 {[%clk 0:01:01.8]} 27... Ndb8 {[%clk 0:00:36.7]} 28.
g6 {[%clk 0:00:55]} 28... f6 {[%clk 0:00:34.3]} 29. Qc5 {[%clk 0:00:50.4]} 29...
Ke7 {[%clk 0:00:34]} 30. Qb6 {[%clk 0:00:50.3]} 30... Rc8 {[%clk 0:00:32.4]} 31.
Rh1 {[%clk 0:00:44.8]} 31... Qc7 {[%clk 0:00:28.6]} 32. Qxc7+ {[%clk 0:00:42.6]}
32... Rxc7 {[%clk 0:00:29.5]} 33. Rh7 {[%clk 0:00:43]} 33... Kf8 {[%clk
0:00:23.4]} 34. Nxe6+ {[%clk 0:00:42.5]} 1-0